[Event "European Online Club-ch-I 2021"]
[Site "Online"]
[Date "2021.03.27"]
[Round "2.11"]
[White "Sprenar, Petr"]
[Black "Mammadzada, Gunay"]
[Result "0-1"]
[ECO "D93"]
[WhiteElo "2259"]
[BlackElo "2443"]
[Annotator "NA"]
[PlyCount "62"]
[EventDate "2021.03.27"]
[EventType "team-tourn"]
[EventCountry "NET"]
[SourceTitle "playchess.com"]
[Source "ChessBase"]
[SourceQuality "1"]
[TimeControl "900+5"]

1. d4 {[%emt 0:00:00]} d5 {[%emt 0:00:06]} 2. c4 {[%emt 0:00:16]} c6 {[%emt 0:00:04]} 3. Nf3 {[%emt 0:00:03]} Nf6 {[%emt 0:00:03]} 4. Qc2 {[%emt 0:00:03]} g6 {[%emt 0:00:05]} 5. Bf4 {[%emt 0:00:15]} Bg7 {[%emt 0:00:03]} 6. e3 {[%emt 0:00:17]} O-O {[%emt 0:00:09]} 7. Nc3 {[%emt 0:00:14]} c5 {[%emt 0:00:23]} 8. dxc5 {[%emt 0:01:40]} Qa5 {[%emt 0:00:05]} 9. Nd2 {[%emt 0:02:08]} dxc4 {[%emt 0:01:04]} 10. Bxc4 {[%emt 0:00:35]} Qxc5 {[%emt 0:00:55]} 11. O-O {[%emt 0:01:16]} a6 {[%emt 0:04:41]} 12. h3 {[%emt 0:04:50]} Nc6 {[%emt 0:00:47]} 13. Rac1 {[%emt 0:00:28]} Qa7 {[%emt 0:01:20]} 14. Rfd1 {[%emt 0:00:31]} b5 {[%emt 0:02:12]} 15. Be2 {[%emt 0:01:57]} Bf5 {[%emt 0:00:40]} 16. Nce4 {[%emt 0:00:51]} Nxe4 {[%emt 0:00:35]} 17. Nxe4 {[%emt 0:00:04]} Nb4 {[%emt 0:01:37]} 18. Qb3 {[%emt 0:00:14]} e5 {[%emt 0:00:32]} 19. Bxe5 {[%emt 0:00:46]} Nxa2 {[%emt 0:00:46]} 20. Qxa2 {[%emt 0:00:07]} Bxe5 {[%emt 0:00:04]} 21. Nc5 {[%emt 0:00:04]} Rfc8 {[%emt 0:00:27]} 22. b4 {[%emt 0:00:03]} Re8 {[%emt 0:00:06]} 23. Bf3 {[%emt 0:00:01]} Rad8 {[%emt 0:00:02]} 24. Qxa6 {[%emt 0:00:05]} Qxa6 {[%emt 0:00:03]} 25. Nxa6 {[%emt 0:00:00]} Rxd1+ {[%emt 0:00:09]} 26. Rxd1 {[%emt 0:00:00]} Be6 {[%emt 0:00:04]} 27. Bc6 {[%emt 0:00:07]} Rc8 {[%emt 0:00:07]} 28. Bxb5 {[%emt 0:00:02]} Bb3 {[%emt 0:00:03]} 29. Rb1 {[%emt 0:00:06]} Ba2 {[%emt 0:00:03]} 30. Rd1 {[%emt 0:00:08]} Bb3 {[%emt 0:00:03]} 31. Rd3 {[%emt 0:00:04]} Rc1+ {[%emt 0:00:03]} 0-1

[Event "European Online Club-ch-I 2021"]
[Site "Online"]
[Date "2021.03.27"]
[Round "2.12"]
[White "Bashirli, Nail"]
[Black "Eret, Matous"]
[Result "1-0"]
[ECO "B23"]
[WhiteElo "2382"]
[BlackElo "2255"]
[Annotator "NA"]
[PlyCount "73"]
[EventDate "2021.03.27"]
[EventType "team-tourn"]
[EventCountry "NET"]
[SourceTitle "playchess.com"]
[Source "ChessBase"]
[SourceQuality "1"]
[TimeControl "900+5"]

1. e4 {[%emt 0:00:00]} c5 {[%emt 0:00:05]} 2. Nc3 {[%emt 0:00:03]} e6 {[%emt 0:00:04]} 3. f4 {[%emt 0:00:12]} a6 {[%emt 0:00:12]} 4. g3 {[%emt 0:00:13]} b5 {[%emt 0:00:34]} 5. Bg2 {[%emt 0:00:03]} Bb7 {[%emt 0:00:03]} 6. d3 {[%emt 0:00:02]} d6 {[%emt 0:00:15]} 7. Nh3 {[%emt 0:00:23]} Be7 {[%emt 0:02:46]} 8. O-O {[%emt 0:00:11]} Nf6 {[%emt 0:00:54]} 9. f5 {[%emt 0:00:12]} e5 {[%emt 0:00:30]} 10. a4 {[%emt 0:00:31]} b4 {[%emt 0:00:20]} 11. Nd5 {[%emt 0:00:03]} Nbd7 {[%emt 0:00:52]} 12. Nxe7 {[%emt 0:01:13]} Qxe7 {[%emt 0:00:04]} 13. g4 {[%emt 0:00:01]} h6 {[%emt 0:00:20]} 14. Nf2 {[%emt 0:00:22]} a5 {[%emt 0:00:25]} 15. c3 {[%emt 0:00:09]} Ba6 {[%emt 0:01:29]} 16. Re1 {[%emt 0:00:13]} Nh7 {[%emt 0:00:15]} 17. Qf3 {[%emt 0:00:21]} Nb6 {[%emt 0:00:38]} 18. Qg3 {[%emt 0:00:26]} O-O-O {[%emt 0:00:56]} 19. Be3 {[%emt 0:00:10]} Kb8 {[%emt 0:00:22]} 20. Red1 {[%emt 0:01:54]} f6 {[%emt 0:00:28]} 21. d4 {[%emt 0:00:36]} Rc8 {[%emt 0:00:28]} 22. dxc5 {[%emt 0:00:33]} dxc5 {[%emt 0:00:00]} 23. cxb4 {[%emt 0:00:01]} axb4 {[%emt 0:00:06]} 24. a5 {[%emt 0:00:04]} Nc4 {[%emt 0:00:08]} 25. Bf1 {[%emt 0:00:02]} Qb7 {[%emt 0:00:20]} 26. Bxc4 {[%emt 0:00:20]} Bxc4 {[%emt 0:00:05]} 27. Rdc1 {[%emt 0:00:16]} Qb5 {[%emt 0:00:53]} 28. b3 {[%emt 0:00:09]} Bxb3 {[%emt 0:00:19]} 29. Bxc5 {[%emt 0:00:21]} Rxc5 {[%emt 0:01:18]} 30. Qxb3 {[%emt 0:00:45]} Rhc8 {[%emt 0:00:18]} 31. Rxc5 {[%emt 0:00:02]} Qxc5 {[%emt 0:00:02]} 32. Ra4 {[%emt 0:00:11]} Ng5 {[%emt 0:00:30]} 33. Rxb4+ {[%emt 0:00:26]} Ka8 {[%emt 0:00:32]} 34. Kg2 {[%emt 0:00:04]} Rc7 {[%emt 0:00:35]} 35. Rb5 {[%emt 0:00:38]} Qc6 {[%emt 0:00:37]} 36. Rb6 {[%emt 0:00:03]} Qc4 {[%emt 0:00:11]} 37. Rb8+ {[%emt 0:00:02]} 1-0

[Event "European Online Club-ch-I 2021"]
[Site "Online"]
[Date "2021.03.27"]
[Round "2.14"]
[White "Heberla, Bartlomiej"]
[Black "Bilquez, Romain"]
[Result "1-0"]
[ECO "C02"]
[WhiteElo "2556"]
[BlackElo "2276"]
[Annotator "ChessBase"]
[PlyCount "77"]
[EventDate "2021.03.27"]
[EventType "team-tourn"]
[EventCountry "NET"]
[SourceTitle "playchess.com"]
[Source "ChessBase"]
[SourceQuality "1"]
[TimeControl "900+5"]

1. e4 {[%emt 0:00:00]} e6 {[%emt 0:00:04]} 2. d4 {[%emt 0:00:02]} d5 {[%emt 0:00:01]} 3. e5 {[%emt 0:00:01]} c5 {[%emt 0:00:01]} 4. c3 {[%emt 0:00:01]} Nc6 {[%emt 0:00:01]} 5. Nf3 {[%emt 0:00:01]} f6 {[%emt 0:00:01]} 6. Bd3 {[%emt 0:00:15]} fxe5 {[%emt 0:00:01]} 7. dxe5 {[%emt 0:00:02]} g6 {[%emt 0:00:01]} 8. h4 {[%emt 0:00:33]} Bg7 {[%emt 0:00:01]} 9. Qe2 {[%emt 0:00:06]} c4 {[%emt 0:00:06]} 10. Bc2 {[%emt 0:00:02]} Qc7 {[%emt 0:00:01]} 11. Bf4 {[%emt 0:00:04]} Nge7 {[%emt 0:00:01]} 12. h5 {[%emt 0:00:17]} O-O {[%emt 0:00:09]} 13. g3 {[%emt 0:00:57]} b5 {[%emt 0:00:47]} 14. Nbd2 {[%emt 0:00:08]} Bb7 {[%emt 0:00:05]} 15. Nd4 {[%emt 0:00:30]} Nxd4 {[%emt 0:00:07]} 16. cxd4 {[%emt 0:00:02]} c3 {[%emt 0:00:46]} 17. Nb3 {[%emt 0:00:14]} cxb2 {[%emt 0:00:05]} 18. Rb1 {[%emt 0:00:02]} Qc3+ {[%emt 0:00:08]} 19. Qd2 {[%emt 0:00:15]} Qxd2+ {[%emt 0:01:28]} 20. Bxd2 {[%emt 0:00:16]} Rfc8 {[%emt 0:00:38]} 21. Rxb2 {[%emt 0:00:15]} a6 {[%emt 0:00:16]} 22. Bg5 {[%emt 0:00:21]} Nc6 {[%emt 0:00:44]} 23. hxg6 {[%emt 0:00:08]} hxg6 {[%emt 0:00:00]} 24. Bxg6 {[%emt 0:00:10]} a5 {[%emt 0:00:01]} 25. f4 {[%emt 0:01:54]} a4 {[%emt 0:01:14]} 26. Rbh2 {[%emt 0:00:17]} Rf8 {[%emt 0:01:11]} 27. Nc5 {[%emt 0:00:03]} Nxd4 {[%emt 0:00:08]} 28. Nxb7 {[%emt 0:01:16]} Nf3+ {[%emt 0:00:02]} 29. Ke2 {[%emt 0:00:01]} Nxh2 {[%emt 0:00:19]} 30. Rxh2 {[%emt 0:00:05]} b4 {[%emt 0:00:07]} 31. Bh7+ {[%emt 0:00:05]} Kh8 {[%emt 0:00:05]} 32. Bf5+ {[%emt 0:00:09]} Kg8 {[%emt 0:00:05]} 33. Bxe6+ {[%emt 0:00:01]} Rf7 {[%emt 0:00:01]} 34. Nd6 {[%emt 0:00:07]} b3 {[%emt 0:00:01]} 35. Bxf7+ {[%emt 0:00:28]} Kf8 {[%emt 0:00:04]} 36. e6 {[%emt 0:00:01]} Bc3 {[%emt 0:00:32]} 37. Rh7 {[%emt 0:00:25]} Ra7 {[%emt 0:00:13]} 38. Nf5 {[%emt 0:00:20]} Rxf7 {[%emt 0:01:19]} 39. exf7 {[%emt 0:00:05]} 1-0

[Event "European Online Club-ch-I 2021"]
[Site "Online"]
[Date "2021.03.27"]
[Round "2.15"]
[White "Martsynovskaya, Marina"]
[Black "Nayhebaver, Martin"]
[Result "0-1"]
[ECO "B91"]
[WhiteElo "2046"]
[BlackElo "2485"]
[Annotator "ChessBase"]
[PlyCount "62"]
[EventDate "2021.03.27"]
[EventType "team-tourn"]
[EventCountry "NET"]
[SourceTitle "playchess.com"]
[Source "ChessBase"]
[SourceQuality "1"]
[TimeControl "900+5"]

1. e4 {[%emt 0:00:00]} c5 {[%emt 0:00:12]} 2. Nf3 {[%emt 0:00:04]} d6 {[%emt 0:00:04]} 3. d4 {[%emt 0:00:04]} cxd4 {[%emt 0:00:03]} 4. Nxd4 {[%emt 0:00:02]} Nf6 {[%emt 0:00:02]} 5. Nc3 {[%emt 0:00:02]} a6 {[%emt 0:00:07]} 6. g3 {[%emt 0:00:34]} e5 {[%emt 0:00:32]} 7. Nb3 {[%emt 0:00:09]} Bg4 {[%emt 0:00:48]} 8. f3 {[%emt 0:00:02]} Be6 {[%emt 0:00:03]} 9. Be3 {[%emt 0:00:02]} Be7 {[%emt 0:00:20]} 10. Nd5 {[%emt 0:00:49]} Bxd5 {[%emt 0:00:40]} 11. exd5 {[%emt 0:00:03]} Nbd7 {[%emt 0:00:03]} 12. c4 {[%emt 0:00:45]} O-O {[%emt 0:00:28]} 13. Bd3 {[%emt 0:00:10]} Rc8 {[%emt 0:00:47]} 14. Rc1 {[%emt 0:00:06]} e4 {[%emt 0:00:38]} 15. fxe4 {[%emt 0:00:58]} Ne5 {[%emt 0:00:07]} 16. O-O {[%emt 0:00:05]} Nfg4 {[%emt 0:00:21]} 17. Bd4 {[%emt 0:00:14]} Bg5 {[%emt 0:00:11]} 18. Rf4 {[%emt 0:00:09]} Bxf4 {[%emt 0:01:01]} 19. gxf4 {[%emt 0:00:47]} Qh4 {[%emt 0:00:05]} 20. Rc2 {[%emt 0:00:03]} Nxd3 {[%emt 0:01:05]} 21. Qxd3 {[%emt 0:01:59]} f5 {[%emt 0:01:11]} 22. e5 {[%emt 0:00:50]} dxe5 {[%emt 0:00:37]} 23. fxe5 {[%emt 0:01:17]} f4 {[%emt 0:00:45]} 24. Qf3 {[%emt 0:00:48]} Nxe5 {[%emt 0:00:59]} 25. Bxe5 {[%emt 0:00:16]} Qe1+ {[%emt 0:00:05]} 26. Qf1 {[%emt 0:01:42]} Qxe5 {[%emt 0:00:13]} 27. Re2 {[%emt 0:00:02]} Qf6 {[%emt 0:00:29]} 28. Rd2 {[%emt 0:02:03]} f3 {[%emt 0:00:16]} 29. Nd4 {[%emt 0:01:25]} f2+ {[%emt 0:00:13]} 30. Kh1 {[%emt 0:00:15]} Rxc4 {[%emt 0:00:11]} 31. Ne6 {[%emt 0:00:06]} Qf3+ {[%emt 0:00:04]} 0-1

[Event "European Online Club-ch-I 2021"]
[Site "Online"]
[Date "2021.03.27"]
[Round "2.16"]
[White "Vavra, Michal"]
[Black "Devallee, Jeremie"]
[Result "0-1"]
[ECO "A88"]
[WhiteElo "1986"]
[BlackElo "2220"]
[Annotator "NA"]
[PlyCount "66"]
[EventDate "2021.03.27"]
[EventType "team-tourn"]
[EventCountry "NET"]
[SourceTitle "playchess.com"]
[Source "ChessBase"]
[SourceQuality "1"]
[TimeControl "900+5"]

1. Nf3 {[%emt 0:00:00]} g6 {[%emt 0:00:03]} 2. d4 {[%emt 0:00:11]} Bg7 {[%emt 0:00:03]} 3. g3 {[%emt 0:00:06]} f5 {[%emt 0:00:05]} 4. Bg2 {[%emt 0:00:19]} Nf6 {[%emt 0:00:02]} 5. O-O {[%emt 0:00:29]} O-O {[%emt 0:00:04]} 6. c4 {[%emt 0:00:49]} d6 {[%emt 0:00:08]} 7. Nc3 {[%emt 0:00:54]} c6 {[%emt 0:00:03]} 8. Bf4 {[%emt 0:01:21]} h6 {[%emt 0:03:36]} 9. h4 {[%emt 0:00:46]} Nh5 {[%emt 0:00:21]} 10. Qd2 {[%emt 0:00:29]} Nxf4 {[%emt 0:00:12]} 11. Qxf4 {[%emt 0:00:03]} Qe8 {[%emt 0:00:13]} 12. d5 {[%emt 0:00:33]} e5 {[%emt 0:01:29]} 13. dxe6 {[%emt 0:00:29]} Bxe6 {[%emt 0:00:22]} 14. Rad1 {[%emt 0:00:55]} Qf7 {[%emt 0:00:07]} 15. Qxd6 {[%emt 0:02:19]} Nd7 {[%emt 0:00:45]} 16. c5 {[%emt 0:02:08]} Rad8 {[%emt 0:00:39]} 17. Nd4 {[%emt 0:00:50]} Bc4 {[%emt 0:00:50]} 18. b3 {[%emt 0:00:43]} Be5 {[%emt 0:00:03]} 19. bxc4 {[%emt 0:00:36]} Bxd6 {[%emt 0:00:04]} 20. cxd6 {[%emt 0:00:04]} Qxc4 {[%emt 0:00:11]} 21. Nd5 {[%emt 0:00:53]} cxd5 {[%emt 0:00:32]} 22. Ne6 {[%emt 0:00:05]} Nb6 {[%emt 0:00:16]} 23. Nxf8 {[%emt 0:00:11]} Kxf8 {[%emt 0:00:03]} 24. Rc1 {[%emt 0:00:15]} Qb4 {[%emt 0:00:25]} 25. Rc7 {[%emt 0:00:20]} Qxd6 {[%emt 0:00:04]} 26. Rxb7 {[%emt 0:00:04]} Rd7 {[%emt 0:00:04]} 27. Rxd7 {[%emt 0:00:09]} Qxd7 {[%emt 0:00:01]} 28. Kh2 {[%emt 0:00:08]} h5 {[%emt 0:00:04]} 29. Rd1 {[%emt 0:00:12]} Kg7 {[%emt 0:00:06]} 30. e3 {[%emt 0:00:09]} Kf6 {[%emt 0:00:03]} 31. Rd4 {[%emt 0:00:07]} Qc6 {[%emt 0:00:15]} 32. Rd2 {[%emt 0:00:26]} Ke5 {[%emt 0:00:06]} 33. Kg1 {[%emt 0:00:06]} Qc1+ {[%emt 0:00:03]} 0-1

[Event "European Online Club-ch-I 2021"]
[Site "Online"]
[Date "2021.03.27"]
[Round "2.18"]
[White "Mchedlishvili, Mikheil"]
[Black "Moranda, Wojciech"]
[Result "1-0"]
[ECO "D45"]
[WhiteElo "2570"]
[BlackElo "2618"]
[Annotator "ChessBase"]
[PlyCount "73"]
[EventDate "2021.03.27"]
[EventType "team-tourn"]
[EventCountry "NET"]
[SourceTitle "playchess.com"]
[Source "ChessBase"]
[SourceQuality "1"]
[TimeControl "900+5"]

1. d4 {[%emt 0:00:00]} Nf6 {[%emt 0:00:03]} 2. c4 {[%emt 0:00:05]} e6 {[%emt 0:00:02]} 3. Nf3 {[%emt 0:00:03]} d5 {[%emt 0:00:01]} 4. Nc3 {[%emt 0:00:03]} c6 {[%emt 0:00:02]} 5. e3 {[%emt 0:00:04]} a6 {[%emt 0:00:02]} 6. b3 {[%emt 0:00:16]} c5 {[%emt 0:00:05]} 7. Bb2 {[%emt 0:00:30]} cxd4 {[%emt 0:00:02]} 8. exd4 {[%emt 0:00:52]} b6 {[%emt 0:00:12]} 9. Bd3 {[%emt 0:00:30]} Bb7 {[%emt 0:00:03]} 10. O-O {[%emt 0:00:02]} Be7 {[%emt 0:00:20]} 11. Qe2 {[%emt 0:00:14]} O-O {[%emt 0:00:04]} 12. Rad1 {[%emt 0:00:03]} Nbd7 {[%emt 0:00:38]} 13. Rfe1 {[%emt 0:00:09]} Re8 {[%emt 0:00:58]} 14. Ne5 {[%emt 0:00:21]} Bf8 {[%emt 0:00:15]} 15. Bc1 {[%emt 0:01:51]} Bb4 {[%emt 0:01:14]} 16. Bd2 {[%emt 0:00:03]} Rc8 {[%emt 0:00:52]} 17. Nxd5 {[%emt 0:02:48]} Bxd2 {[%emt 0:01:21]} 18. Nxf6+ {[%emt 0:00:16]} gxf6 {[%emt 0:00:02]} 19. Nxd7 {[%emt 0:01:04]} Bg5 {[%emt 0:03:41]} 20. h4 {[%emt 0:00:54]} Qxd7 {[%emt 0:00:48]} 21. Qh5 {[%emt 0:00:46]} h6 {[%emt 0:02:18]} 22. hxg5 {[%emt 0:00:06]} fxg5 {[%emt 0:00:01]} 23. Qxh6 {[%emt 0:00:08]} f5 {[%emt 0:00:01]} 24. Qxg5+ {[%emt 0:00:36]} Qg7 {[%emt 0:00:03]} 25. Qxg7+ {[%emt 0:00:09]} Kxg7 {[%emt 0:00:01]} 26. d5 {[%emt 0:00:32]} Kf6 {[%emt 0:00:14]} 27. dxe6 {[%emt 0:00:05]} Rxe6 {[%emt 0:00:35]} 28. Rxe6+ {[%emt 0:00:05]} Kxe6 {[%emt 0:00:01]} 29. f3 {[%emt 0:00:15]} a5 {[%emt 0:00:15]} 30. Kf2 {[%emt 0:00:02]} Ke5 {[%emt 0:00:05]} 31. Re1+ {[%emt 0:00:25]} Kf6 {[%emt 0:00:03]} 32. Rh1 {[%emt 0:00:07]} Ke5 {[%emt 0:00:23]} 33. Rh5 {[%emt 0:00:15]} Kd4 {[%emt 0:00:10]} 34. Bxf5 {[%emt 0:00:06]} Rb8 {[%emt 0:00:02]} 35. g4 {[%emt 0:00:20]} Rf8 {[%emt 0:00:07]} 36. Kg3 {[%emt 0:00:12]} Kc3 {[%emt 0:00:02]} 37. Rh6 {[%emt 0:00:04]} 1-0

[Event "European Online Club-ch-I 2021"]
[Site "Online"]
[Date "2021.03.27"]
[Round "2.19"]
[White "Socko, Bartosz"]
[Black "Ibarra Jerez, Jose Carlos"]
[Result "1-0"]
[ECO "E60"]
[WhiteElo "2618"]
[BlackElo "2553"]
[Annotator "ChessBase"]
[PlyCount "75"]
[EventDate "2021.03.27"]
[EventType "team-tourn"]
[EventCountry "NET"]
[SourceTitle "playchess.com"]
[Source "ChessBase"]
[SourceQuality "1"]
[TimeControl "900+5"]

1. d4 {[%emt 0:00:00]} Nf6 {[%emt 0:00:06]} 2. c4 {[%emt 0:00:03]} d6 {[%emt 0:00:07]} 3. Nf3 {[%emt 0:00:04]} g6 {[%emt 0:00:03]} 4. g3 {[%emt 0:00:03]} Bg7 {[%emt 0:00:04]} 5. Bg2 {[%emt 0:00:02]} O-O {[%emt 0:00:16]} 6. O-O {[%emt 0:00:02]} Bf5 {[%emt 0:00:02]} 7. Nh4 {[%emt 0:00:08]} Be4 {[%emt 0:00:08]} 8. f3 {[%emt 0:00:01]} Bc6 {[%emt 0:01:03]} 9. e4 {[%emt 0:00:05]} e5 {[%emt 0:00:01]} 10. d5 {[%emt 0:00:05]} Bd7 {[%emt 0:00:05]} 11. Nc3 {[%emt 0:00:01]} a5 {[%emt 0:00:14]} 12. Be3 {[%emt 0:00:02]} Na6 {[%emt 0:00:03]} 13. Qd2 {[%emt 0:00:01]} Nh5 {[%emt 0:00:05]} 14. Bh1 {[%emt 0:00:57]} Nf4 {[%emt 0:00:21]} 15. gxf4 {[%emt 0:00:22]} exf4 {[%emt 0:00:49]} 16. Bf2 {[%emt 0:00:06]} Qf6 {[%emt 0:01:20]} 17. Rad1 {[%emt 0:00:50]} g5 {[%emt 0:00:14]} 18. Ng2 {[%emt 0:00:24]} Qg6 {[%emt 0:00:06]} 19. Ne1 {[%emt 0:00:12]} f5 {[%emt 0:00:17]} 20. Bg2 {[%emt 0:00:27]} fxe4 {[%emt 0:00:19]} 21. Nxe4 {[%emt 0:00:12]} g4 {[%emt 0:00:06]} 22. Kh1 {[%emt 0:00:13]} Rae8 {[%emt 0:00:18]} 23. Bd4 {[%emt 0:00:53]} g3 {[%emt 0:02:17]} 24. Bxg7 {[%emt 0:00:16]} Qh5 {[%emt 0:00:27]} 25. Nxg3 {[%emt 0:00:06]} fxg3 {[%emt 0:00:34]} 26. Qh6 {[%emt 0:00:00]} Rf5 {[%emt 0:00:12]} 27. Rd2 {[%emt 0:02:14]} Qf7 {[%emt 0:00:27]} 28. Bd4 {[%emt 0:00:40]} Rh5 {[%emt 0:02:47]} 29. Qf6 {[%emt 0:00:04]} Rxh2+ {[%emt 0:00:01]} 30. Kg1 {[%emt 0:00:02]} Qxf6 {[%emt 0:00:09]} 31. Bxf6 {[%emt 0:00:00]} h5 {[%emt 0:00:16]} 32. Rd4 {[%emt 0:02:27]} Re2 {[%emt 0:01:49]} 33. Re4 {[%emt 0:00:05]} Rd2 {[%emt 0:00:22]} 34. Re7 {[%emt 0:00:07]} h4 {[%emt 0:01:07]} 35. Rxd7 {[%emt 0:00:16]} h3 {[%emt 0:00:01]} 36. Rg7+ {[%emt 0:00:03]} Kf8 {[%emt 0:00:01]} 37. Rxg3 {[%emt 0:00:03]} Rh1+ {[%emt 0:00:01]} 38. Kxh1 {[%emt 0:00:04]} 1-0

[Event "European Online Club-ch-I 2021"]
[Site "Online"]
[Date "2021.03.27"]
[Round "2.20"]
[White "Cuenca Jimenez, Jose Fernando"]
[Black "Tomczak, Jacek"]
[Result "1/2-1/2"]
[ECO "A28"]
[WhiteElo "2506"]
[BlackElo "2610"]
[Annotator "ChessBase"]
[PlyCount "101"]
[EventDate "2021.03.27"]
[EventType "team-tourn"]
[EventCountry "NET"]
[SourceTitle "playchess.com"]
[Source "ChessBase"]
[SourceQuality "1"]
[TimeControl "900+5"]

1. c4 {[%emt 0:00:00]} e5 {[%emt 0:00:03]} 2. Nc3 {[%emt 0:00:04]} Nf6 {[%emt 0:00:02]} 3. Nf3 {[%emt 0:00:02]} Nc6 {[%emt 0:00:02]} 4. e4 {[%emt 0:00:02]} Bb4 {[%emt 0:00:06]} 5. d3 {[%emt 0:00:02]} d6 {[%emt 0:00:03]} 6. a3 {[%emt 0:00:01]} Bc5 {[%emt 0:00:01]} 7. b4 {[%emt 0:00:04]} Bb6 {[%emt 0:00:02]} 8. Na4 {[%emt 0:00:05]} Bd4 {[%emt 0:00:02]} 9. Nxd4 {[%emt 0:00:03]} Nxd4 {[%emt 0:00:01]} 10. Be2 {[%emt 0:00:05]} a5 {[%emt 0:00:14]} 11. b5 {[%emt 0:00:22]} O-O {[%emt 0:00:12]} 12. O-O {[%emt 0:00:40]} Nd7 {[%emt 0:01:08]} 13. f4 {[%emt 0:00:25]} f5 {[%emt 0:02:39]} 14. exf5 {[%emt 0:02:15]} Nc5 {[%emt 0:00:49]} 15. Nxc5 {[%emt 0:01:42]} dxc5 {[%emt 0:00:03]} 16. Bf3 {[%emt 0:01:35]} Nxf3+ {[%emt 0:00:24]} 17. Rxf3 {[%emt 0:01:38]} Rxf5 {[%emt 0:03:03]} 18. Bb2 {[%emt 0:00:42]} exf4 {[%emt 0:00:17]} 19. Qd2 {[%emt 0:00:18]} Qd6 {[%emt 0:01:13]} 20. Raf1 {[%emt 0:00:29]} Be6 {[%emt 0:00:20]} 21. Rxf4 {[%emt 0:00:39]} Rxf4 {[%emt 0:00:03]} 22. Rxf4 {[%emt 0:00:43]} Re8 {[%emt 0:00:32]} 23. Rf3 {[%emt 0:00:41]} Bf7 {[%emt 0:01:00]} 24. Qc3 {[%emt 0:00:52]} Qd4+ {[%emt 0:00:04]} 25. Qxd4 {[%emt 0:00:03]} cxd4 {[%emt 0:00:01]} 26. Bxd4 {[%emt 0:00:08]} Bh5 {[%emt 0:00:04]} 27. Rg3 {[%emt 0:00:48]} g6 {[%emt 0:00:03]} 28. Be3 {[%emt 0:00:14]} Be2 {[%emt 0:00:09]} 29. Bd2 {[%emt 0:00:22]} Rf8 {[%emt 0:00:55]} 30. h3 {[%emt 0:00:16]} Rf1+ {[%emt 0:00:02]} 31. Kh2 {[%emt 0:00:02]} Rd1 {[%emt 0:00:02]} 32. Bxa5 {[%emt 0:00:06]} Rxd3 {[%emt 0:00:02]} 33. Bxc7 {[%emt 0:00:36]} Rxg3 {[%emt 0:00:03]} 34. Kxg3 {[%emt 0:00:01]} Bxc4 {[%emt 0:00:01]} 35. a4 {[%emt 0:00:04]} Kf7 {[%emt 0:00:02]} 36. Kf2 {[%emt 0:00:10]} Ke6 {[%emt 0:00:05]} 37. g3 {[%emt 0:00:09]} Bb3 {[%emt 0:00:04]} 38. a5 {[%emt 0:00:04]} Bc4 {[%emt 0:00:02]} 39. b6 {[%emt 0:00:14]} h5 {[%emt 0:00:08]} 40. Ke3 {[%emt 0:00:07]} Ba6 {[%emt 0:00:02]} 41. Kf4 {[%emt 0:00:02]} Bb5 {[%emt 0:00:02]} 42. Kg5 {[%emt 0:00:01]} Kf7 {[%emt 0:00:02]} 43. Bd8 {[%emt 0:00:03]} Ba6 {[%emt 0:00:02]} 44. Kf4 {[%emt 0:00:03]} Ke6 {[%emt 0:00:02]} 45. Ke4 {[%emt 0:00:01]} Bb5 {[%emt 0:00:03]} 46. Bc7 {[%emt 0:00:03]} Ba6 {[%emt 0:00:01]} 47. h4 {[%emt 0:00:13]} Bb5 {[%emt 0:00:02]} 48. Kf4 {[%emt 0:00:02]} Ba6 {[%emt 0:00:02]} 49. Ke4 {[%emt 0:00:01]} Bb5 {[%emt 0:00:02]} 50. Kf4 {[%emt 0:00:01]} Ba6 {[%emt 0:00:01]} 51. Ke4 {[%emt 0:00:02]} 1/2-1/2

[Event "European Online Club-ch-I 2021"]
[Site "Online"]
[Date "2021.03.27"]
[Round "3.1"]
[White "Mareco, Sandro"]
[Black "Verdier, Patrice"]
[Result "1-0"]
[ECO "A30"]
[WhiteElo "2629"]
[BlackElo "2109"]
[Annotator "ChessBase"]
[PlyCount "95"]
[EventDate "2021.03.27"]
[EventType "team-tourn"]
[EventCountry "NET"]
[SourceTitle "playchess.com"]
[Source "ChessBase"]
[SourceQuality "1"]
[TimeControl "900+5"]

1. c4 {[%emt 0:00:00]} Nf6 {[%emt 0:00:06]} 2. Nf3 {[%emt 0:00:03]} c5 {[%emt 0:00:02]} 3. Nc3 {[%emt 0:00:02]} e6 {[%emt 0:00:03]} 4. g3 {[%emt 0:00:03]} b6 {[%emt 0:00:01]} 5. Bg2 {[%emt 0:00:02]} Bb7 {[%emt 0:00:01]} 6. O-O {[%emt 0:00:01]} Be7 {[%emt 0:00:02]} 7. d4 {[%emt 0:00:06]} cxd4 {[%emt 0:00:01]} 8. Nxd4 {[%emt 0:00:01]} Bxg2 {[%emt 0:00:07]} 9. Kxg2 {[%emt 0:00:01]} Nc6 {[%emt 0:01:16]} 10. Nc2 {[%emt 0:00:24]} O-O {[%emt 0:00:12]} 11. e4 {[%emt 0:00:03]} d6 {[%emt 0:00:09]} 12. b3 {[%emt 0:00:07]} a6 {[%emt 0:00:04]} 13. Qe2 {[%emt 0:00:02]} Qc7 {[%emt 0:00:07]} 14. Bb2 {[%emt 0:00:20]} Rfe8 {[%emt 0:00:13]} 15. Rac1 {[%emt 0:00:06]} Qb7 {[%emt 0:00:17]} 16. Rfd1 {[%emt 0:00:04]} Rad8 {[%emt 0:00:05]} 17. Ne3 {[%emt 0:00:08]} Bf8 {[%emt 0:00:28]} 18. f3 {[%emt 0:00:14]} Ne5 {[%emt 0:00:46]} 19. Rd2 {[%emt 0:01:33]} Ned7 {[%emt 0:01:04]} 20. Rcd1 {[%emt 0:00:05]} h6 {[%emt 0:00:48]} 21. Ba3 {[%emt 0:01:03]} Nc5 {[%emt 0:00:04]} 22. e5 {[%emt 0:00:12]} Nh7 {[%emt 0:00:44]} 23. Bxc5 {[%emt 0:02:06]} bxc5 {[%emt 0:00:04]} 24. Ne4 {[%emt 0:00:01]} d5 {[%emt 0:00:32]} 25. cxd5 {[%emt 0:00:04]} exd5 {[%emt 0:00:02]} 26. Rxd5 {[%emt 0:00:02]} Rxd5 {[%emt 0:00:05]} 27. Rxd5 {[%emt 0:00:03]} Qc7 {[%emt 0:00:46]} 28. Nc4 {[%emt 0:00:09]} Qc6 {[%emt 0:01:23]} 29. Qd3 {[%emt 0:00:14]} Ng5 {[%emt 0:00:10]} 30. Nxg5 {[%emt 0:00:26]} hxg5 {[%emt 0:00:03]} 31. h3 {[%emt 0:00:46]} Re6 {[%emt 0:00:37]} 32. Rd8 {[%emt 0:00:52]} g6 {[%emt 0:01:06]} 33. Rb8 {[%emt 0:01:17]} Qc7 {[%emt 0:00:44]} 34. Qd8 {[%emt 0:00:29]} Qxd8 {[%emt 0:00:15]} 35. Rxd8 {[%emt 0:00:02]} Kg7 {[%emt 0:00:05]} 36. Kf2 {[%emt 0:00:15]} Be7 {[%emt 0:00:16]} 37. Rd7 {[%emt 0:00:03]} Kf8 {[%emt 0:00:13]} 38. Ke3 {[%emt 0:00:06]} f6 {[%emt 0:00:14]} 39. Ke4 {[%emt 0:00:07]} Ke8 {[%emt 0:00:42]} 40. Rb7 {[%emt 0:00:06]} fxe5 {[%emt 0:00:08]} 41. Kd5 {[%emt 0:00:48]} Rf6 {[%emt 0:00:07]} 42. Rb8+ {[%emt 0:02:04]} Kd7 {[%emt 0:00:27]} 43. Rg8 {[%emt 0:00:20]} Kc7 {[%emt 0:00:32]} 44. Rg7 {[%emt 0:00:05]} Kd8 {[%emt 0:00:06]} 45. Nxe5 {[%emt 0:00:56]} Rf5 {[%emt 0:00:08]} 46. Ke4 {[%emt 0:00:28]} Bf6 {[%emt 0:00:17]} 47. Rg8+ {[%emt 0:00:06]} Kc7 {[%emt 0:00:03]} 48. Nxg6 {[%emt 0:00:03]} 1-0